Cogmind - Beta 13 @@@ ROGUE MODE // 2024.04.06 @ 18:28:34 Player: michaelman Result: Destroyed by 57-XC7(R) with Subdweller Shrapnel Launcher Performance ------------- Evolutions (0) 0 Regions Visited (3) 600 Robots Destroyed (13) 65 Value Destroyed (279) 279 Prototype IDs (0) 0 Alien Tech Used (0) 0 Bonus (0) 0 TOTAL SCORE: 944 Bonus ------- None Cogmind --------- Core Integrity 0/250 Matter 300/300 Energy 100/100 System Corruption 0% Temperature Cool (0) Movement Core (150) Ox2 Location -10/Subcaves Parts ------- > --- POWER (1) -------- (None) > --- PROPULSION (2) --- (None) > --- UTILITY (2) ------ Small Storage Unit Visual Processing Unit > --- WEAPON (2) ------- Ripper > --- INVENTORY (8) ---- Ion Engine Light Treads Light Treads Improved Aluminum Leg Particle Gun Light Assault Rifle Rocket Launcher Datajack Peak State ------------ > --- POWER ------------ Light Ion Engine > --- PROPULSION ------- Improved Aluminum Leg Improved Aluminum Leg > --- UTILITY ---------- Small Storage Unit Visual Processing Unit > --- WEAPON ----------- Medium Laser Ripper > --- INVENTORY -------- Ion Engine Light Treads Light Treads Improved Aluminum Leg Particle Gun Light Assault Rifle Rocket Launcher Datajack [Rating: 14] Favorites ----------- Power Light Ion Engine Engine Light Ion Engine Propulsion Improved Aluminum Leg Leg Improved Aluminum Leg Utility Small Storage Unit Storage Small Storage Unit Processor Visual Processing Unit Weapon Light Assault Rifle Energy Gun Medium Laser Ballistic Gun Light Assault Rifle Ballistic Cannon Light Cannon Slashing Weapon Ripper Build | -11 -10 -10 -10 ------- Run | Yrd Mat Min Sub Slots Evolved . | . . . . Power . | . . . . Propulsion . | . . . . Utility . | . . . . Weapon . | . . . . Parts Attached 16 | 5 9 2 . Power 3 | 1 2 . . Engine 3 | 1 2 . . Core . | . . . . Reactor . | . . . . Propulsion 5 | 2 2 1 . Treads . | . . . . Leg 5 | 2 2 1 . Wheel . | . . . . Hover . | . . . . Flight . | . . . . Utility 3 | . 3 . . Device . | . . . . Storage 2 | . 2 . . Processor 1 | . 1 . . Hackware . | . . . . Protection . | . . . . Artifact . | . . . . Weapon 5 | 2 2 1 . Energy Gun 2 | 1 1 . . Energy Cannon . | . . . . Ballistic Gun 1 | 1 . . . Ballistic Cannon 1 | . 1 . . Launcher . | . . . . Special Weapon . | . . . . Impact Weapon . | . . . . Slashing Weapon 1 | . . 1 . Piercing Weapon . | . . . . Special Melee Weapon . | . . . . Unidentified Prototypes . | . . . . Parts Lost 7 | . 3 . 4 Power 2 | . 1 . 1 Propulsion 3 | . 1 . 2 Utility . | . . . . Weapon 2 | . 1 . 1 Highest Loss Streak 4 | . 2 . 4 To Critical Strikes . | . . . . Average Slot Usage (%) 95 | . 93 100 87 Engine 13 | . 13 14 14 Leg 26 | . 27 28 18 Storage 16 | . 19 14 14 Processor 9 | . 4 14 14 Energy Gun 10 | . 7 14 11 Ballistic Gun 11 | . 14 13 . Ballistic Cannon 2 | . 5 . . Slashing Weapon 2 | . . . 14 Naked Turns . | . . . . Heaviest Build 15 | 8 15 13 13 Greatest Support 26 | 20 26 26 26 Greatest Overweight (x) 4 | . . . 4 Average Overweight (x) . | . . . . Largest Inventory Capacity 8 | 5 8 8 8 Average Capacity 7 | 5 7 8 8 Most Carried 8 | 5 8 8 8 Average Carried 6 | 4 5 7 8 Final Capacity 8 | 5 8 8 8 Final Carried 8 | 5 8 8 8 Class Distribution -------------------- 100% | Mutant Dominant Class ---------------- Mutant | -10/Materials Mutant | -10/Mines Mutant | -10/Subcaves Resources | -11 -10 -10 -10 ----------- Run | Yrd Mat Min Sub Matter Collected 463 | 187 253 23 . Remotely . | . . . . Salvage Created 324 | . 264 60 . Parts 24 | . 16 8 . Haulers Intercepted . | . . . . Recyclers Shooed . | . . . . Parts Field Recycled . | . . . . Retrieved Matter . | . . . . Parts Self-Destructed . | . . . . Prevented . | . . . . Kills | -11 -10 -10 -10 ------- Run | Yrd Mat Min Sub Combat Hostiles Destroyed 7 | . 7 . . Guns 7 | . 7 . . Classes Destroyed 6 | . 4 2 . Builder 1 | . . 1 . Tunneler 2 | . . 2 . Operator 1 | . 1 . . Watcher 2 | . 2 . . Swarmer 3 | . 3 . . Grunt 4 | . 4 . . Best Kill Streak 4 | . 4 3 . Combat Bots Only 3 | . 3 . . Max Kills in Single Turn 2 | . 2 1 . Gunslinging . | . . . . Exploded . | . . . . Melee . | . . . . Uniques/NPCs Destroyed . | . . . . Combat | -11 -10 -10 -10 -------- Run | Yrd Mat Min Sub Hostile Shots Fired 105 | . 90 . 15 Missed 29 | . 26 . 3 Damage Taken 1171 | . 752 . 419 Core 258 | . 132 . 126 Absorbed by Shields . | . . . . Core Remaining (%) 100 | 100 . . . Volleys Fired 43 | . 38 2 3 Largest 2 | . 2 1 1 Hottest 70 | . 70 50 50 Shots Fired 79 | . 74 2 3 Gun 59 | . 54 2 3 Cannon 20 | . 20 . . Launcher . | . . . . Special . | . . . . Kinetic 58 | . 58 . . Thermal 21 | . 16 2 3 Explosive . | . . . . Electromagnetic . | . . . . Robot Hit Streak 18 | . 18 5 1 Robot Miss Streak 4 | . 4 . 1 Penetration Max . | . . . . Secondary Targets 1 | . 1 . . Max Gunslinging Chain 1 | . 1 . . Shots Hit Robots 48 | . 43 4 1 Core Hits 23 | . 19 3 1 Critical Kills . | . . . . Critical Parts Destroyed . | . . . . Critical Strikes 2 | . 1 . 1 Burn 2 | . 1 . 1 Melee Attacks 2 | . . 2 . Impact . | . . . . Slashing 2 | . . 2 . Piercing . | . . . . Sneak Attacks 2 | . . 2 . Combat Hostiles . | . . . . Follow-up Attacks . | . . . . Damage Inflicted 729 | . 532 184 13 Guns 380 | . 341 26 13 Cannons 123 | . 123 . . Explosions 68 | . 68 . . Melee 158 | . . 158 . Ramming . | . . . . Kinetic 341 | . 341 . . Thermal 162 | . 123 26 13 Explosive 68 | . 68 . . Electromagnetic . | . . . . Impact . | . . . . Slashing 158 | . . 158 . Piercing . | . . . . Highest Corruption . | . . . . Average Corruption . | . . . . Corruption Purged . | . . . . Corruption Blocked . | . . . . Overload Shots . | . . . . Overflow Damage 46 | . 4 42 . Projectiles . | . . . . Explosions 4 | . 4 . . Melee 42 | . . 42 . Knockbacks 5 | . 5 . . Impact . | . . . . Kinetic 4 | . 4 . . Secondary 1 | . 1 . . Self-Inflicted Damage . | . . . . Shots . | . . . . Rammed . | . . . . Targets Rammed . | . . . . Kicked . | . . . . Crushed . | . . . . Highest Temperature 269 | . 269 10 . Average Temperature 75 | . 78 7 . Received Heat Transfer 399 | . 357 . 42 Siege Activations . | . . . . Robots Corrupted . | . . . . Combat Hostiles . | . . . . Parts Fried . | . . . . Impact Corruptions . | . . . . Robots Melted . | . . . . Combat Hostiles . | . . . . Parts Melted . | . . . . Heat Transferred 629 | . 444 74 111 Parts Sabotaged . | . . . . Parts Stolen . | . . . . Parts Stripped . | . . . . Power Chain Reactions . | . . . . Alert | -11 -10 -10 -10 ------- Run | Yrd Mat Min Sub Peak Influence 210 | . 210 34 . Initial 19 | . . 19 . Average 49 | . 84 19 . Maximum Alert Level 1 | . 1 . . Low Security (%) 98 | 100 96 100 . Level 1 1 | . 3 . . Level 2 . | . . . . Level 3 . | . . . . Level 4 . | . . . . Level 5 . | . . . . High Security . | . . . . Max Security . | . . . . Squads Dispatched . | . . . . Investigation . | . . . . Extermination . | . . . . Reinforcement . | . . . . Assault . | . . . . Garrison . | . . . . Intercept . | . . . . Searches Triggered . | . . . . Construction Impeded . | . . . . Haulers Reinforced . | . . . . Active Scanning Responses . | . . . . Cargo Convoy Interrupts . | . . . . Stealth | -11 -10 -10 -10 --------- Run | Yrd Mat Min Sub Distress Signals 2 | . 2 . . Communications Jammed . | . . . . Distress Signals . | . . . . Times Spotted 17 | . 9 . 8 Peak Tracking Total 5 | . 4 . 5 Tactical Retreats . | . . . . Traps | -11 -10 -10 -10 ------- Run | Yrd Mat Min Sub Traps Triggered . | . . . . Indirectly . | . . . . Trap Hack Attempts . | . . . . Triggered . | . . . . Disarmed . | . . . . Reprogrammed . | . . . . Reused . | . . . . Traps Extracted . | . . . . Installed . | . . . . Triggered . | . . . . Machines | -11 -10 -10 -10 ---------- Run | Yrd Mat Min Sub Machines Disabled 3 | . 3 . . Max in Single Turn 2 | . 2 . . Machines Repaired . | . . . . Machines Dismantled . | . . . . Machines Sabotaged . | . . . . Overloaded Fab Kills . | . . . . Hacking | -11 -10 -10 -10 --------- Run | Yrd Mat Min Sub Machines Accessed . | . . . . Terminals . | . . . . Fabricators . | . . . . Repair Stations . | . . . . Recycling Units . | . . . . Scanalyzers . | . . . . Garrison Access . | . . . . Total Hacks . | . . . . Successful . | . . . . Failed . | . . . . Catastrophic . | . . . . Database Lockouts . | . . . . Manual . | . . . . Terminals . | . . . . Fabricators . | . . . . Repair Stations . | . . . . Recycling Units . | . . . . Scanalyzers . | . . . . Garrison Access . | . . . . Terminal Hacks . | . . . . Fabricator Hacks . | . . . . Repair Station Hacks . | . . . . Recycling Unit Hacks . | . . . . Scanalyzer . | . . . . Garrison Access Hacks . | . . . . Unauthorized Hacks . | . . . . Terminals . | . . . . Fabricators . | . . . . Repair Stations . | . . . . Recycling Units . | . . . . Scanalyzers . | . . . . Garrison Access . | . . . . Data Cores Recovered 1 | . 1 . . Used . | . . . . Hacking Detections . | . . . . Full Trace Events . | . . . . Feedback Events . | . . . . Feedback Blocked . | . . . . Robot Schematics Acquired . | . . . . Robots Built . | . . . . Authchips . | . . . . Time . | . . . . Total Robot Build Rating . | . . . . Part Schematics Acquired . | . . . . Parts Built . | . . . . Authchips . | . . . . Time . | . . . . Total Part Build Rating . | . . . . Parts Repaired . | . . . . Time . | . . . . Parts Recycled . | . . . . Recycled Matter . | . . . . Retrieved Matter . | . . . . Retrieved Components . | . . . . Parts Scanalyzed . | . . . . Part Schematics Acquired . | . . . . Parts Damaged . | . . . . Bothacking | -11 -10 -10 -10 ------------ Run | Yrd Mat Min Sub Used RIF Installer . | . . . . Robots Hacked . | . . . . Non-combat . | . . . . Combat . | . . . . Robot Hacks Applied . | . . . . Relay Couplers Released . | . . . . Fabnet Peak Effective % . | . . . . Robots Rewired . | . . . . Allies Hacked . | . . . . Hacks Repelled . | . . . . Allies | -11 -10 -10 -10 -------- Run | Yrd Mat Min Sub Total Allies . | . . . . Largest Group . | . . . . Highest-Rated Group . | . . . . Highest-Rated Ally . | . . . . Total Orders . | . . . . Ally Attacks . | . . . . Total Damage . | . . . . Kills . | . . . . Allies Corrupted . | . . . . Allies Melted . | . . . . Intel | -11 -10 -10 -10 ------- Run | Yrd Mat Min Sub Robot Analysis Total . | . . . . Derelict Logs Recovered 1 | . . 1 . Drone Launches . | . . . . Drone Recoveries . | . . . . Exploration | -11 -10 -10 -10 ------------- Run | Yrd Mat Min Sub Turns Passed 963 | 81 413 349 120 Spaces Moved 662 | 61 237 279 85 Core 22 | 9 . . 13 Treads . | . . . . Legs 640 | 52 237 279 72 Wheels . | . . . . Hover . | . . . . Flight . | . . . . Fastest Speed 50 | 50 120 120 120 Average Speed 120 | 109 120 120 135 Slowest Speed 250 | 120 120 120 250 Overloaded Moves . | . . . . Propulsion Burnouts . | . . . . Robots Hopped . | . . . . Cave-ins Triggered . | . . . . Exploration Rate (%) 24 | 4 31 51 10 Regions Visited 3 Branch Regions 2 Pre-discovered Areas . | . . . . Known Exits Taken . | . . . . Unknown Exits Taken 3 | 1 1 1 . Scrap Searched 1 | . . 1 . Spaces Dug . | . . . . Terrain Destroyed 16 | . 16 . . Melee . | . . . . Projectile . | . . . . AOE 16 | . 16 . . Terrain Rammed . | . . . . Walls Destroyed . | . . . . Machines Disabled . | . . . . Actions | -11 -10 -10 -10 --------- Run | Yrd Mat Min Sub Total 748 | 74 298 288 88 Wait . | . . . . Move 659 | 60 236 278 85 Hop . | . . . . Pick Up 22 | 9 11 2 . Fast Attach 2 | 1 1 . . Attach 8 | 4 4 . . Detach . | . . . . Swap 6 | . 4 2 . Drop 6 | . 4 2 . Fire 43 | . 38 2 3 Melee 2 | . . 2 . Ram . | . . . . Kick . | . . . . Crush . | . . . . Escape Stasis . | . . . . Rewire . | . . . . Trap . | . . . . Miscellaneous . | . . . . Route ------- -11/Scrapyard -10/Materials -10/Mines (discovered 2 exits: [*Mat] / [*Sub]) -10/Subcaves History --------- Turn | Location | Event 5 | -11/Scrapyard | Discovered new exit (range 16) 82 | -11/Scrapyard | Entered Materials 306 | -10/Materials | Build established: Mutant 451 | -10/Materials | Discovered new exit (range 8) 479 | -10/Materials | Core integrity fell below 50% 495 | -10/Materials | Entered Mines 515 | -10/Mines | Learned Materials emergency access door positions 535 | -10/Mines | Received a Rocket Launcher from a helpful Derelict 663 | -10/Mines | Discovered new exit (range 6) 690 | -10/Mines | A weapon hastily lodged in a ceiling crevice suddenly fell to the ground 840 | -10/Mines | Discovered new exit (range 4) 844 | -10/Mines | Entered Subcaves 912 | -10/Subcaves | Ambushed by swarm of Subdwellers 923 | -10/Subcaves | Ambushed by Subdwellers from Twisted Machinery 950 | -10/Subcaves | Core integrity fell below 20% 964 | -10/Subcaves | Destroyed by 57-XC7(R) with Subdweller Shrapnel Launcher Last Messages --------------- to Scrap Shield. 00935_ HV Slug penetrates D8-4SN(R). 00935_ D8-4SN(R) suffers critical hit (Destroy). 00935_ D8-4SN(R) destroyed. 00937_ Imp. Aluminum Leg destroyed. 00938_ HV Slug penetrates HJ-BPQ(R). 00938_ HJ-BPQ(R) suffers critical hit (Destroy). 00938_ HJ-BPQ(R) knocked back. 00938_ HV Slug penetrates Twisted Machinery. 00938_ HV Slug penetrates Wall. 00939_ Q7-WF7(h) destroyed. 00940_ R2-QDH(O) collects matter. 00942_ Subatomizers dissect the Sub. Optics. 00946_ 57-XC7(R) affixes Scrap Shield Fragment to Scrap Shield. 00948_ HJ-BPQ(R) affixes Scrap Shield Fragment to Scrap Shield. 00949_ Med. Laser destroyed. 00952_ Subatomizers dissect the Sub. Optics. 00964_ Lgt. Ion Engine destroyed. Map ----- +----------------------------------------------------+ | ?????????????????????????????????????????????????? | | ?????????????????????????????????????????????????? | | ?????????????????????????????????????????????????? | | ?????????????????????????????????????????????????? | | ?????????????????????????????????????????????????? | | ?????????????????????????????????????????????????? | | ?????????????????????????????????????????????????? | | ?????????????????????????????????????????????????? | | ?????????????????????????????????????????????????? | | ?????????????????????????????????????????????????? | | ?????????????????????????????????????????????????? | | ?????????????????????????????????????????????????? | | ?????????????????????????????????????????????????? | | ?????????????????????##??????????????????????????? | | ????????????????????## ##????????????????????????? | | ????????????????????# #????????????????????????? | | ????????????????????# #####????????????????????? | | ????????????????????# ##???????????????????? | | ????????????????????# ##??????????????????? | | ???????????????????## #??????????????????? | | ???????????????????# ???????????????????? | | ???????????????????# ????????????????????? | | ????????????????????# ?????????????????????? | | ?????????????????????# #?????????????????????? | | ?????????????????????# #?????????????????????? | | ?????????????????????# @ ##????????????????????? | | ????????????????????## #????????????????????? | | ???????????????????## #????????????????????? | | ???????????????????# #####????????????????? | | ???????????????????# #????????????????? | | ???????????????????### #????????????????? | | ????????????????????#; #????????????????? | | ????????????????????#; #????????????????? | | ????????????????????# ! #????????????????? | | ?????????????????#?##R! #????????????????? | | ?????????????????# # [ ##???????????????? | | ??????????????#### %" =! #???????????????? | | ??????##??##### #### ! = #???????????????? | | ?????## ### %#?# =!!#; ;;##???????????????? | | ?????# %% ### ! ]! | ; #????????????????? | | ?????## # ##" *%R% [ ;##????????????????? | | ?????# % # " !] ##?????????????????? | | ?????# % # %= #??????????????????? | | ?????## % #" =%! #??????????????????? | | ?????## #### %" % #??????????????????? | | ?????# %##?## #### #??????????????????? | | ?????## #??## ???###??????????????????? | | ?????# ##???## #????????????????????????? | | ?????# #????# #?????????????????????????? | | ?????## ##????### ?????????????????????????? | +----------------------------------------------------+ Best States ------------- Heat Dissipation 25 Energy Generation 10 Energy Capacity 250 Matter Stores 300 Matter Capacity 350 Sight Range 18 Terrain Scan Density 10 Evasion (%) 55 Item Schematics ----------------- None Robot Schematics ------------------ None Fabricated ------------ Nothing Alien Tech Used ----------------- None Achievements -------------- None Challenges ------------ None Game ------ Seed SmartbombGlidesysFlail Manual? 0 Play Time 00:14:00 Cumulative 3.4 hours Start 2024.04.06 @ 18:15:59 End 2024.04.06 @ 18:28:34 Sessions 1 Manual Loads 0 Difficulty Rogue Special Mode None Game No. 6 Rogue 6 Adventurer 0 Explorer 0 Win Type - Total 0 Types 0/0/0/0/0/0/0/0/0 Lore% 2 Gallery% 6 Achievement% 9 Wizard Run 0 Options --------- Layout 1 ASCII 0 Keyboard 0 Movement Mouse Keybinds 0 Fullscreen 1 Font 24/Swanston Map View 50x35 Zoom Use 0% Tactical HUD 1 Map Filters NONE Filters NONE Steam 1 RUN: d3276093-b9f1-4805-aa28-f41f226bd2e1